bitfinex-derivatives/quotes_SOLF0:USTF0_20260208
["timestamp","ask_amount","ask_price","bid_price","bid_amount"]
[1770592617440,65.36826072,87.956,87.88,8.8838786]
[1770592617650,65.36826072,87.956,87.881,62.67857292]
[1770592617847,8.8838786,87.98,87.881,62.67857292]
[1770592617848,65.36826072,87.979,87.881,62.67857292]
[1770592618152,8.8838786,88.01,87.921,62.67857292]
[1770592618448,65.36826072,88.009,87.921,62.67857292]
[1770592618847,65.36826072,88.009,87.9,8.8838786]
[1770592619045,10.2348,87.995,87.903,10.2454]
[1770592619245,8.8838786,88.01,87.871,62.67857292]
[1770592619246,65.36826072,87.989,87.871,62.67857292]
[1770592619447,159.1939,88.003,87.871,62.67857292]
[1770592619448,65.36826072,87.969,87.871,62.67857292]
[1770592619749,65.36826072,87.967,87.871,62.67857292]
[1770592620340,65.36826072,87.969,87.886,62.67857292]
[1770592620646,65.36826072,87.969,87.863,62.67857292]
[1770592620852,65.36826072,87.949,87.863,62.67857292]
[1770592621150,65.36826072,87.949,87.84,62.67857292]
[1770592621541,65.36826072,87.933,87.84,62.67857292]
[1770592621852,65.36826072,87.929,87.84,62.67857292]
[1770592622042,65.36826072,87.929,87.817,62.67857292]
[1770592622242,65.36826072,87.909,87.817,62.67857292]
[1770592622442,10.2457,87.901,87.817,62.67857292]
[1770592622639,65.36826072,87.9,87.817,62.67857292]
[1770592622838,65.36826072,87.889,87.793,62.67857292]
[1770592623040,65.36826072,87.889,87.79,8.8838786]
[1770592623041,65.36826072,87.889,87.811,62.67857292]
[1770592623238,8.8838786,87.91,87.811,62.67857292]
[1770592623446,65.36826072,87.939,87.841,62.67857292]
[1770592623748,65.36826072,87.909,87.82,8.8838786]
[1770592623947,65.36826072,87.909,87.82,71.56245152]
[1770592624449,8.8838786,87.95,87.79,8.8838786]
[1770592624450,65.36826072,87.939,87.84,71.56245152]
[1770592624648,65.36826072,87.929,87.84,71.56245152]
[1770592624848,10.2453,87.905,87.84,62.67857292]
[1770592625149,65.36826072,87.904,87.815,62.67857292]
[1770592625356,65.36826072,87.904,87.722,13.50076718]
[1770592625357,65.36826072,87.869,87.791,62.67857292]
[1770592625646,8.8838786,87.89,87.709,227.58]
[1770592625647,8.8838786,87.85,87.765,62.67857292]
[1770592626654,8.8838786,87.86,87.765,62.67857292]
[1770592626949,74.25213932,87.86,87.765,62.67857292]
[1770592627148,10.2525,87.844,87.765,62.67857292]
[1770592627854,65.36826072,87.827,87.688,62.67857292]
[1770592628048,65.36826072,87.819,87.721,62.67857292]
[1770592628249,65.36826072,87.819,87.741,62.67857292]
[1770592628551,65.36826072,87.819,87.66,8.8838786]
[1770592628552,65.36826072,87.868,87.771,62.67857292]
[1770592628752,8.8838786,87.89,87.771,62.67857292]
[1770592628945,65.36826072,87.892,87.791,62.67857292]
[1770592629147,65.36826072,87.889,87.791,62.67857292]
[1770592629644,10.249,87.873,87.791,62.67857292]
[1770592629845,65.36826072,87.869,87.791,62.67857292]
[1770592630444,65.36826072,87.869,87.79,8.8838786]
[1770592630445,65.36826072,87.915,87.811,62.67857292]
[1770592631044,10.2465,87.894,87.811,62.67857292]
[1770592631657,10.2465,87.894,87.83,8.8838786]
[1770592632451,10.2481,87.881,87.811,62.67857292]
[1770592632856,65.36826072,87.892,87.811,62.67857292]
[1770592633058,10.2496,87.868,87.811,62.67857292]
[1770592633249,8.8838786,87.9,87.759,62.67857292]
[1770592633250,65.36826072,87.859,87.759,62.67857292]
[1770592633445,8.8838786,87.84,87.759,62.67857292]
[1770592633747,10.2561,87.813,87.734,62.67857292]
[1770592634144,65.36826072,87.819,87.734,62.67857292]
[1770592634549,8.8838786,87.84,87.751,62.67857292]
[1770592634855,65.36826072,87.839,87.73,62.67857292]
[1770592635044,10.2557,87.816,87.73,62.67857292]
[1770592635551,10.2523,87.845,87.76,64.79863837]
[1770592635751,66.48398661,87.863,87.76,64.79863837]
[1770592635954,63.73397463,87.899,87.771,64.2340911]
[1770592636255,10.2486,87.877,87.793,64.2340911]
[1770592636453,63.73397463,87.899,87.793,64.2340911]
[1770592636759,10.2481,87.881,87.793,74.4922911]
[1770592637352,10.2497,87.867,87.793,64.2340911]
[1770592637548,63.73397463,87.899,87.793,64.2340911]
[1770592637749,10.2496,87.868,87.793,64.2340911]
[1770592637952,63.73397463,87.899,87.793,64.2340911]
[1770592638358,10.2526,87.843,87.771,64.2340911]
[1770592639461,10.2526,87.843,87.736,34.17]
[1770592639462,63.73397463,87.919,87.791,64.2340911]
[1770592640352,10.2483,87.879,87.806,64.2340911]
[1770592640961,10.2468,87.892,87.81,64.2340911]
[1770592641554,10.2468,87.892,87.81,101.71607735]
[1770592641762,63.73397463,87.906,87.813,64.2340911]
[1770592642163,63.73397463,87.881,87.786,64.2340911]
[1770592642550,10.47603754,87.929,87.786,64.2340911]
[1770592642551,63.73397463,87.879,87.786,64.2340911]
[1770592642756,37.48198625,87.88,87.786,64.2340911]
[1770592642757,63.73397463,87.869,87.786,64.2340911]
[1770592642964,63.73397463,87.869,87.751,64.2340911]
[1770592643365,63.73397463,87.821,87.728,10.2659]
[1770592643558,63.73397463,87.821,87.728,64.2340911]
[1770592643751,10.2553,87.819,87.729,10.2657]
[1770592643964,63.73397463,87.859,87.731,64.2340911]
[1770592644351,10.2524,87.844,87.745,10.2639]
[1770592644557,63.73397463,87.859,87.746,64.2340911]
[1770592644852,10.251,87.856,87.762,64.2340911]
[1770592645059,63.73397463,87.859,87.762,64.2340911]
[1770592645265,63.73397463,87.859,87.728,159.6917]
[1770592645266,63.73397463,87.859,87.739,64.2340911]
[1770592645562,63.73397463,87.835,87.747,64.2340911]
[1770592646064,63.73397463,87.835,87.701,64.2340911]
[1770592646364,10.2565,87.809,87.731,64.2340911]
[1770592648268,63.73397463,87.835,87.733,64.2340911]
[1770592648466,63.73397463,87.835,87.72,37.48198625]
[1770592648467,63.73397463,87.859,87.741,64.2340911]
[1770592648662,63.73397463,87.859,87.741,74.4984911]
[1770592648964,10.2532,87.837,87.741,64.2340911]
[1770592649266,10.2517,87.85,87.765,64.2340911]
[1770592650567,63.73397463,87.859,87.765,64.2340911]
[1770592651063,63.73397463,87.837,87.741,64.2340911]
[1770592652165,14.00156543,87.896,87.697,10.22493828]
[1770592652166,63.73397463,87.8,87.697,64.2340911]
[1770592652461,63.73397463,87.824,87.731,64.2340911]
[1770592652663,10.2531,87.838,87.751,64.2340911]
[1770592653372,10.2517,87.85,87.771,64.2340911]
[1770592653565,63.73397463,87.884,87.771,64.2340911]
[1770592653865,63.73397463,87.884,87.726,13.50076718]
[1770592653866,63.73397463,87.908,87.81,64.2340911]
[1770592654064,63.73397463,87.908,87.811,64.2340911]
[1770592654467,63.73397463,87.933,87.811,64.2340911]
[1770592654662,63.73397463,87.926,87.811,64.2340911]
[1770592654970,10.245,87.907,87.841,64.2340911]
[1770592655166,63.73397463,87.949,87.861,64.2340911]
[1770592655662,10.2406,87.946,87.881,64.2340911]
[1770592656163,63.73397463,87.973,87.881,64.2340911]
[1770592656364,63.73397463,87.999,87.9,73.11208802]
[1770592656858,63.73397463,87.999,87.9,64.2340911]
[1770592657259,10.2403,87.948,87.871,64.2340911]
[1770592657562,63.73397463,87.956,87.871,64.2340911]
[1770592657862,10.2423,87.93,87.871,64.2340911]
[1770592658174,63.73397463,87.956,87.871,64.2340911]
[1770592658370,63.73397463,87.989,87.871,64.2340911]
[1770592658566,10.2402,87.948,87.871,64.2340911]
[1770592658875,63.73397463,87.989,87.871,64.2340911]
[1770592659172,10.2367,87.979,87.875,64.2340911]
[1770592659372,63.73397463,88.013,87.891,64.2340911]
[1770592659558,63.73397463,88.013,87.914,10.2441]
[1770592659763,24.88150058,88.05,87.915,64.2340911]
[1770592659965,63.73397463,88.049,87.915,64.2340911]
[1770592660763,63.73397463,88.028,87.915,64.2340911]
[1770592661165,63.73397463,87.989,87.891,64.2340911]
[1770592661773,63.73397463,87.974,87.891,64.2340911]
[1770592662474,63.73397463,87.999,87.891,64.2340911]
[1770592663771,73.96887463,87.995,87.891,64.2340911]
[1770592663972,63.73397463,87.995,87.891,64.2340911]
[1770592664481,63.73397463,88.039,87.911,64.2340911]
[1770592665074,78.06405654,88.026,87.915,66.80529768]
[1770592665277,67.83285654,88.026,87.915,66.80529768]
[1770592665674,78.06775654,87.995,87.915,66.80529768]
[1770592666878,10.2331,88.01,87.915,66.80529768]
[1770592667376,159.047,88.085,87.917,66.80529768]
[1770592667575,67.83285654,88.069,87.931,66.80529768]
[1770592667778,24.88150058,88.07,87.933,66.80529768]
[1770592667779,67.83285654,88.067,87.933,66.80529768]
[1770592668471,67.83285654,88.067,87.93,24.88150058]
[1770592668472,10.2292,88.043,87.935,66.80529768]
[1770592668676,67.83285654,88.042,87.935,66.80529768]
[1770592668976,67.83285654,88.069,87.94,66.80529768]
[1770592669175,67.83285654,88.069,87.93,34.17]
[1770592669176,67.83285654,88.069,87.951,66.80529768]
[1770592669882,227.62,88.127,87.951,66.80529768]
[1770592669883,67.83285654,88.046,87.951,66.80529768]
[1770592670477,78.06485654,88.019,87.927,66.80529768]
[1770592670877,14.00156543,88.135,87.91,24.88150058]
[1770592670878,67.83285654,88.044,87.931,66.80529768]
[1770592671578,24.88150058,88.11,87.92,24.88150058]
[1770592671579,10.2321,88.018,87.933,66.80529768]
[1770592671777,67.83285654,88.021,87.933,66.80529768]
[1770592672179,10.2354,87.99,87.908,66.80529768]
[1770592672379,67.83285654,87.99,87.908,66.80529768]
[1770592673481,67.83285654,87.963,87.873,66.80529768]
[1770592673781,67.83285654,87.999,87.88,24.88150058]
[1770592673986,10.2357,87.987,87.908,66.80529768]
[1770592674378,67.83285654,87.999,87.909,77.04999768]
[1770592674786,67.83285654,87.999,87.881,66.80529768]
[1770592674989,67.83285654,88.022,87.912,66.80529768]
[1770592676691,10.2325,88.015,87.926,10.2427]
[1770592676878,10.2325,88.015,87.927,66.80529768]
[1770592677080,67.83285654,88.006,87.902,66.80529768]
[1770592677288,24.88150058,88.01,87.902,66.80529768]
[1770592677289,67.83285654,87.981,87.902,66.80529768]
[1770592677993,10.2396,87.954,87.878,66.80529768]
[1770592678194,67.83285654,88.006,87.891,66.80529768]
[1770592678386,10.2365,87.98,87.893,10.2465]
[1770592678586,10.2365,87.98,87.894,66.80529768]
[1770592679186,10.2379,87.968,87.894,66.80529768]
[1770592679593,67.83285654,87.999,87.911,66.80529768]
[1770592679993,8.86685159,88.02,87.931,66.80529768]
[1770592680596,10.234,88.002,87.931,66.80529768]
[1770592680799,8.86685159,88.04,87.941,66.80529768]
[1770592681004,76.69970813,88.04,87.941,66.80529768]
[1770592681202,67.83285654,88.019,87.941,66.80529768]
[1770592681413,10.2335,88.007,87.941,66.80529768]
[1770592681600,67.83285654,88.019,87.941,66.80529768]
[1770592681800,67.83285654,88.019,87.848,20.5038]
[1770592681801,10.2379,87.969,87.911,66.80529768]
[1770592682002,10.2379,87.969,87.89,8.86685159]
[1770592682003,67.83285654,87.977,87.89,8.86685159]
[1770592682507,8.86685159,88.0,87.891,66.80529768]
[1770592682705,76.69970813,88.0,87.911,66.80529768]
[1770592682900,10.2348,87.995,87.914,66.80529768]
[1770592683102,67.83285654,87.995,87.914,66.80529768]
[1770592683607,10.2366,87.98,87.914,66.80529768]
[1770592684404,10.238,87.968,87.89,75.67214927]
[1770592684605,67.83285654,87.979,87.89,66.80529768]
[1770592685008,67.83285654,87.979,87.804,10.17564525]
[1770592685009,8.86685159,87.91,87.833,66.80529768]
[1770592685305,8.86685159,87.93,87.833,66.80529768]
[1770592685510,8.86685159,87.93,87.846,66.80529768]
[1770592685806,67.83285654,87.935,87.846,66.80529768]
[1770592686113,10.2422,87.931,87.854,66.80529768]
[1770592686611,10.2436,87.92,87.854,66.80529768]
[1770592687207,10.2448,87.909,87.854,66.80529768]
[1770592688311,10.2433,87.923,87.854,66.80529768]
[1770592688506,67.83285654,87.935,87.854,66.80529768]
[1770592689317,10.2432,87.923,87.854,66.80529768]
[1770592689614,67.83285654,87.935,87.854,66.80529768]
[1770592690011,67.83285654,87.935,87.857,66.80529768]
[1770592690210,67.83285654,87.991,87.871,66.80529768]
[1770592690520,67.83285654,88.029,87.913,66.80529768]
[1770592691018,67.83285654,88.029,87.84,10.17564525]
[1770592691019,10.234,88.002,87.919,66.80529768]
[1770592691222,67.83285654,88.029,87.919,66.80529768]
[1770592691407,67.83285654,88.023,87.919,66.80529768]
[1770592691917,67.83285654,87.994,87.919,66.80529768]
[1770592692314,10.2365,87.981,87.919,66.80529768]
[1770592692513,67.83285654,87.994,87.895,66.80529768]
[1770592692712,67.83285654,87.989,87.895,66.80529768]
[1770592693018,10.2413,87.939,87.861,66.80529768]
[1770592693706,10.2427,87.927,87.861,66.80529768]
[1770592694110,67.83285654,87.939,87.861,66.80529768]
[1770592694812,67.83285654,87.995,87.881,66.80529768]
[1770592695006,67.83285654,87.995,87.812,13.55231543]
[1770592695007,10.2342,88.001,87.901,66.80529768]
[1770592695209,68.96441318,88.019,87.901,66.80529768]
[1770592695716,68.96441318,88.019,87.914,68.17377195]
[1770592696419,10.2339,88.003,87.914,68.17377195]
[1770592696614,68.96441318,88.019,87.921,64.47917462]
[1770592696819,10.2321,88.018,87.93,64.47917462]
[1770592697810,10.2335,88.007,87.932,64.47917462]
[1770592698113,159.1014,88.055,87.932,64.47917462]
[1770592698114,64.93122342,88.046,87.932,64.47917462]
[1770592698322,64.93122342,88.015,87.932,64.47917462]
[1770592698517,64.93122342,88.059,87.932,64.47917462]
[1770592698715,10.2306,88.032,87.942,64.47917462]
[1770592699117,64.93122342,88.059,87.942,64.47917462]
[1770592699515,64.93122342,88.029,87.942,64.47917462]
[1770592700014,64.93122342,88.006,87.918,10.2436]
[1770592700215,64.93122342,88.006,87.919,64.47917462]
[1770592701116,24.92789111,88.04,87.919,64.47917462]
[1770592701117,64.93122342,88.004,87.919,64.47917462]
[1770592701525,64.93122342,88.039,87.919,64.47917462]
[1770592702024,64.93122342,88.039,87.932,64.47917462]
[1770592702525,64.93122342,88.019,87.881,64.47917462]
[1770592702726,64.93122342,88.003,87.922,10.2432]
[1770592703523,10.234,88.002,87.922,10.2432]
[1770592704322,64.93122342,88.003,87.922,10.2432]
[1770592704531,64.93122342,88.028,87.931,64.47917462]
[1770592705027,64.93122342,88.028,87.946,10.2404]
[1770592705327,64.93122342,88.028,87.947,64.47917462]
[1770592705628,64.93122342,88.016,87.911,64.47917462]
[1770592706624,64.93122342,88.016,87.91,24.92789111]
[1770592706625,10.2343,88.0,87.92,10.2434]
[1770592706823,64.93122342,88.016,87.892,64.47917462]
[1770592707216,10.2344,87.999,87.912,10.2443]
[1770592707424,64.93122342,88.016,87.913,64.47917462]
[1770592707830,64.93122342,88.016,87.932,64.47917462]
[1770592708025,159.0596,88.078,87.932,64.47917462]
[1770592708026,64.93122342,88.039,87.932,64.47917462]
[1770592708726,10.2313,88.025,87.955,10.2393]
[1770592708920,64.93122342,88.024,87.932,64.47917462]
[1770592709124,64.93122342,88.009,87.932,64.47917462]
[1770592709429,64.93122342,88.009,87.91,8.85940499]
[1770592709430,10.2354,87.99,87.91,83.58307961]
[1770592709926,10.2354,87.99,87.911,64.47917462]
[1770592710314,10.2354,87.99,87.913,64.47917462]
[1770592710519,10.2341,88.001,87.913,64.47917462]
[1770592711824,10.2341,88.001,87.923,64.47917462]
[1770592712224,10.2354,87.99,87.923,64.47917462]
[1770592712725,75.16662342,87.99,87.914,10.2441]
[1770592713518,75.16662342,87.99,87.868,34.17]
[1770592713519,64.93122342,87.964,87.874,64.47917462]
[1770592714426,64.93122342,87.964,87.876,64.47917462]
[1770592714814,10.2394,87.955,87.882,10.2479]
[1770592715015,64.93122342,87.954,87.876,64.47917462]
[1770592715220,20.92669893,88.027,87.85,8.85940499]
[1770592715221,64.93122342,87.949,87.855,64.47917462]
[1770592715725,64.93122342,87.909,87.82,8.85940499]
[1770592715918,64.93122342,87.909,87.81,64.47917462]
[1770592716118,10.2481,87.881,87.81,64.47917462]
[1770592716532,64.93122342,87.88,87.81,64.47917462]
[1770592717228,64.93122342,87.869,87.787,64.47917462]
[1770592717633,10.2504,87.861,87.787,64.47917462]
[1770592717831,64.93122342,87.869,87.791,64.47917462]
[1770592718834,64.93122342,87.922,87.81,8.88855503]
[1770592719025,64.93122342,87.909,87.811,64.47917462]
[1770592719428,64.93122342,87.909,87.813,64.47917462]
[1770592719842,10.2453,87.905,87.816,64.47917462]
[1770592720222,64.93122342,87.909,87.83,8.88855503]
[1770592720427,64.93122342,87.909,87.831,64.47917462]
[1770592722232,64.93122342,87.909,87.833,64.47917462]
[1770592722829,8.88855503,87.93,87.837,64.47917462]
[1770592723028,64.93122342,87.932,87.837,64.47917462]
[1770592723825,8.88855503,87.95,87.813,64.47917462]
[1770592723826,64.93122342,87.911,87.813,64.47917462]
[1770592724041,64.93122342,87.889,87.79,73.36772965]
[1770592724231,64.93122342,87.889,87.79,64.47917462]
[1770592724431,10.2498,87.867,87.79,64.47917462]
[1770592724634,64.93122342,87.889,87.79,73.36772965]
[1770592724829,10.2482,87.88,87.793,64.47917462]
[1770592725031,64.93122342,87.889,87.793,64.47917462]
[1770592725539,10.2496,87.868,87.793,64.47917462]
[1770592725741,64.93122342,87.889,87.793,64.47917462]
[1770592726139,10.2496,87.868,87.793,64.47917462]
[1770592726338,64.93122342,87.889,87.793,64.47917462]
[1770592726736,10.2495,87.869,87.793,64.47917462]
[1770592727836,10.2504,87.861,87.793,64.47917462]
[1770592728036,77.77231348,87.861,87.793,64.47917462]
[1770592728541,67.52191348,87.887,87.793,64.47917462]
[1770592728941,10.2489,87.874,87.793,64.47917462]
[1770592729129,67.52191348,87.873,87.793,64.47917462]
[1770592729833,67.52191348,87.898,87.811,65.4980941]
[1770592730440,67.52191348,87.889,87.811,65.4980941]
[1770592730940,10.2504,87.861,87.79,8.88855503]
[1770592731130,67.52191348,87.867,87.788,65.4980941]
[1770592732044,10.2499,87.866,87.793,65.4980941]
[1770592732448,67.52191348,87.866,87.771,65.4980941]
[1770592733145,159.3903,87.895,87.771,65.4980941]
[1770592733146,67.52191348,87.859,87.771,65.4980941]
[1770592733536,67.52191348,87.838,87.749,65.4980941]
[1770592733733,67.52191348,87.819,87.73,8.88855503]
[1770592734040,10.2572,87.803,87.731,75.7635941]
[1770592734343,10.2572,87.803,87.731,65.4980941]
[1770592734644,10.2584,87.793,87.731,65.4980941]
[1770592735447,76.41046851,87.82,87.731,65.4980941]
[1770592735747,76.41046851,87.84,87.731,65.4980941]
[1770592735943,67.52191348,87.818,87.731,65.4980941]
[1770592736649,10.2555,87.817,87.743,65.4980941]
[1770592736851,10.2555,87.817,87.73,8.88855503]
[1770592736852,76.41046851,87.84,87.751,65.4980941]
[1770592737050,10.2509,87.857,87.773,10.2605]
[1770592737243,10.2509,87.857,87.774,65.4980941]
[1770592737441,67.52191348,87.859,87.774,65.4980941]
[1770592738436,10.2533,87.836,87.774,65.4980941]
[1770592739045,67.52191348,87.859,87.752,65.4980941]
[1770592740243,10.2562,87.811,87.73,10.2656]
[1770592740445,10.2562,87.811,87.7,34.19]
[1770592740446,67.52191348,87.81,87.725,65.4980941]
[1770592741150,10.2594,87.784,87.71,8.88855503]
[1770592741348,10.2594,87.784,87.703,65.4980941]
[1770592741349,67.52191348,87.789,87.703,65.4980941]
[1770592741550,67.52191348,87.789,87.62,420.0]
[1770592741551,67.52191348,87.779,87.671,65.4980941]
[1770592741852,67.52191348,87.759,87.671,65.4980941]
[1770592742347,10.2672,87.717,87.648,65.4980941]
[1770592742744,67.52191348,87.739,87.648,65.4980941]
[1770592743146,67.52191348,87.719,87.621,65.4980941]
[1770592743754,67.52191348,87.699,87.621,65.4980941]
[1770592744046,67.52191348,87.679,87.599,1.98511166]
[1770592744247,67.52191348,87.679,87.597,65.4980941]
[1770592744551,67.52191348,87.702,87.621,65.4980941]
[1770592744739,67.52191348,87.695,87.621,65.4980941]
[1770592744946,67.52191348,87.689,87.591,65.4980941]
[1770592745453,10.2734,87.665,87.591,65.4980941]
[1770592745749,8.88855503,87.65,87.566,65.4980941]
[1770592745954,67.52191348,87.637,87.542,65.4980941]
[1770592746155,67.52191348,87.637,87.549,1.98638073]
[1770592746548,10.2745,87.655,87.561,65.4980941]
[1770592746752,67.52191348,87.649,87.561,65.4980941]
[1770592747056,10.2762,87.64,87.561,65.4980941]
[1770592747651,8.88855503,87.71,87.549,1.98638073]
[1770592747652,10.2743,87.657,87.571,65.4980941]
[1770592747855,77.79621348,87.657,87.571,65.4980941]
[1770592748853,10.2759,87.643,87.571,65.4980941]
[1770592749153,67.52191348,87.657,87.571,65.4980941]
[1770592749352,8.88855503,87.71,87.549,1.98638073]
[1770592749353,8.88855503,87.65,87.549,1.98638073]
[1770592749559,8.88855503,87.65,87.522,65.4980941]
[1770592749560,67.52191348,87.629,87.522,65.4980941]
[1770592749855,67.52191348,87.626,87.53,65.4980941]
[1770592750153,67.52191348,87.609,87.53,65.4980941]
[1770592750456,10.2807,87.603,87.53,65.4980941]
[1770592750753,67.52191348,87.589,87.502,65.4980941]
[1770592751452,8.88855503,87.65,87.499,1.98765711]
[1770592751453,67.52191348,87.569,87.499,1.98765711]
[1770592751650,10.2848,87.567,87.48,8.88855503]
[1770592751857,67.52191348,87.592,87.5,8.88855503]
[1770592752257,10.2829,87.584,87.5,8.88855503]
[1770592752454,67.52191348,87.592,87.5,8.88855503]
[1770592752660,67.52191348,87.592,87.421,34.19]
[1770592752661,67.52191348,87.549,87.45,8.88855503]
[1770592752955,67.52191348,87.544,87.45,8.88855503]
[1770592753148,67.52191348,87.544,87.36,8.88855503]
[1770592753149,67.52191348,87.529,87.439,1.98886123]
[1770592753351,67.52191348,87.549,87.451,65.4980941]
[1770592753755,67.52191348,87.549,87.471,65.4980941]
[1770592754251,10.2858,87.559,87.471,65.4980941]
[1770592755162,66.04118382,87.569,87.473,62.94324146]
[1770592755658,66.04118382,87.591,87.49,8.88855503]
[1770592755859,66.04118382,87.591,87.491,62.94324146]
[1770592756454,63.47592851,87.559,87.469,66.67029297]
[1770592756957,63.47592851,87.555,87.471,66.67029297]
[1770592758157,63.47592851,87.555,87.473,66.67029297]
[1770592759658,63.47592851,87.578,87.491,66.67029297]
[1770592760767,63.47592851,87.569,87.476,10.2954]
[1770592761355,63.47592851,87.565,87.476,76.96569297]
[1770592761861,63.47592851,87.565,87.476,66.67029297]
[1770592762769,10.2855,87.561,87.476,66.67029297]
[1770592762965,63.47592851,87.561,87.476,66.67029297]
[1770592763863,63.47592851,87.561,87.478,66.67029297]
[1770592764168,63.47592851,87.589,87.491,66.67029297]
[1770592764462,8.88855503,87.6,87.493,66.67029297]
[1770592764463,73.75982851,87.575,87.493,66.67029297]
[1770592766577,73.76132851,87.563,87.493,66.67029297]
[1770592766781,73.76132851,87.563,87.47,8.88855503]
[1770592766782,63.47592851,87.563,87.471,66.67029297]
[1770592767081,63.47592851,87.563,87.474,10.2957]
[1770592767082,10.2867,87.551,87.474,10.2957]
[1770592767278,8.88855503,87.6,87.491,66.67029297]
[1770592767279,63.47592851,87.599,87.491,66.67029297]
[1770592767671,63.47592851,87.575,87.491,66.67029297]
[1770592768076,63.47592851,87.575,87.471,66.67029297]
[1770592768282,63.47592851,87.575,87.473,66.67029297]
[1770592768470,63.47592851,87.575,87.49,75.558848]
[1770592768873,10.2843,87.572,87.49,75.558848]
[1770592769075,72.36448354,87.6,87.49,75.558848]
[1770592769778,10.2828,87.584,87.511,66.67029297]
[1770592769976,63.47592851,87.583,87.511,66.67029297]
[1770592770178,63.47592851,87.583,87.49,8.88855503]
[1770592770379,63.47592851,87.559,87.48,66.67029297]
[1770592770583,63.47592851,87.559,87.47,8.88855503]
[1770592770786,63.47592851,87.559,87.459,66.67029297]
[1770592770981,63.47592851,87.539,87.459,66.67029297]
[1770592771478,10.2885,87.536,87.459,66.67029297]
[1770592771676,63.47592851,87.535,87.459,66.67029297]
[1770592772088,10.2903,87.521,87.459,66.67029297]
[1770592772385,63.47592851,87.558,87.45,66.67029297]
[1770592772585,8.88855503,87.66,87.491,76.96389297]
[1770592772586,10.2846,87.569,87.491,76.96389297]
[1770592772987,10.2846,87.569,87.491,66.67029297]
[1770592773981,10.2862,87.556,87.491,66.67029297]
[1770592774184,73.76212851,87.556,87.491,66.67029297]
[1770592774789,73.76212851,87.556,87.478,10.2951]
[1770592775390,73.76212851,87.556,87.478,76.96539297]
[1770592775691,10.2875,87.544,87.478,66.67029297]
[1770592776479,63.47592851,87.578,87.491,66.67029297]
[1770592777182,63.47592851,87.578,87.51,8.88855503]
[1770592777486,63.47592851,87.609,87.51,75.558848]
[1770592777684,10.2845,87.57,87.51,66.67029297]
[1770592777990,63.47592851,87.585,87.51,75.558848]
[1770592778590,10.2831,87.582,87.512,66.67029297]
[1770592780290,10.2831,87.582,87.513,10.2911]
[1770592780489,10.2831,87.582,87.513,76.96139297]
[1770592780687,63.47592851,87.619,87.513,66.67029297]
[1770592780887,63.47592851,87.619,87.524,10.2898]
[1770592781195,10.2801,87.608,87.531,66.67029297]
[1770592782794,10.2801,87.608,87.533,66.67029297]
[1770592783604,8.94475907,87.66,87.516,76.96099297]
[1770592783605,63.47592851,87.596,87.516,76.96099297]
[1770592783792,63.47592851,87.596,87.516,66.67029297]
[1770592785388,65.79673523,87.619,87.516,66.67029297]
[1770592785594,8.94475907,87.6,87.516,66.67029297]
[1770592785793,10.2838,87.576,87.516,66.67029297]
[1770592787301,10.20462874,87.635,87.491,10.2936]
[1770592787302,65.79673523,87.619,87.521,67.65573515]
[1770592788599,10.2818,87.593,87.521,67.65573515]
[1770592788793,65.79673523,87.599,87.521,67.65573515]
[1770592791096,65.79673523,87.619,87.521,67.65573515]
[1770592791804,10.2809,87.601,87.525,67.65573515]
[1770592792702,65.79673523,87.593,87.52,8.94475907]
[1770592793007,65.79673523,87.593,87.503,13.87271618]
[1770592793008,65.79673523,87.593,87.508,67.65573515]
[1770592793606,65.79673523,87.613,87.522,67.65573515]
[1770592793806,65.79673523,87.609,87.522,67.65573515]
[1770592794106,65.79673523,87.609,87.524,67.65573515]
[1770592794606,10.2809,87.601,87.526,67.65573515]
[1770592795107,10.2795,87.613,87.541,67.65573515]
[1770592795807,10.2778,87.627,87.545,67.65573515]
[1770592796702,10.2778,87.627,87.548,67.65573515]
[1770592796905,76.07453523,87.627,87.548,67.65573515]
[1770592797709,76.07453523,87.627,87.553,67.65573515]
[1770592798107,10.2766,87.637,87.553,67.65573515]
[1770592798314,10.2766,87.637,87.561,67.65573515]
[1770592798500,10.2766,87.637,87.565,10.285]
[1770592798705,10.2766,87.637,87.566,67.65573515]
[1770592799604,10.2766,87.637,87.568,67.65573515]
[1770592800116,65.79673523,87.679,87.585,67.65573515]
[1770592800507,65.79673523,87.699,87.601,67.65573515]
[1770592800907,10.2711,87.684,87.609,67.65573515]
[1770592801101,65.79673523,87.683,87.609,67.65573515]
[1770592801510,74.7414943,87.68,87.581,67.65573515]
[1770592802803,65.79673523,87.669,87.593,67.65573515]
[1770592803012,65.79673523,87.639,87.561,67.65573515]
[1770592803211,65.79673523,87.639,87.564,10.2851]
[1770592803408,65.79673523,87.68,87.58,8.94475907]
[1770592803718,65.79673523,87.68,87.581,67.65573515]
[1770592804113,8.94475907,87.69,87.6,10.2809]
[1770592804114,65.79673523,87.677,87.6,10.2809]
[1770592804314,65.79673523,87.698,87.601,67.65573515]